fUSD/lending_fUSD_20250207
["ID","MTS","AMOUNT","RATE_DAILY","PERIOD"]
[352068937,1738931445826,-1500.0,0.00016887,2]
[352068938,1738931445836,-150.0,0.00016921,2]
[352068939,1738931445846,-999.99,0.00016922,2]
[352068940,1738931445855,-150.99,0.00016922,2]
[352068941,1738931445865,-474.4,0.00016922,2]
[352068942,1738931445874,-150.99,0.00016922,2]
[352068943,1738931445884,-9999.99,0.00016922,2]
[352068944,1738931445893,-9999.99,0.00016922,2]
[352068945,1738931445903,-10287.15,0.00016922,2]
[352068946,1738931445913,-328.97,0.00016922,2]
[352068947,1738931445923,-813.49,0.00016922,2]
[352068948,1738931445934,-3565.15,0.00016922,2]
[352068949,1738931445945,-9999.99,0.00016922,2]
[352068950,1738931445956,-1332.28805443,0.00016922,2]
[352068951,1738931445966,-537.52,0.00017069,2]
[352068952,1738931445975,-151.54,0.0001719,2]
[352068953,1738931445984,-500.0,0.000172,6]
[352068954,1738931445994,-151.54,0.000172,2]
[352068955,1738931446003,-151.54,0.00017211,2]
[352068956,1738931446012,-151.54,0.00017222,2]
[352068957,1738931446020,-151.54,0.00017233,2]
[352068958,1738931446030,-151.54,0.00017243,2]
[352068959,1738931446039,-1668.536,0.00017254,2]
[352068960,1738931446050,-151.54,0.00017254,2]
[352068961,1738931446059,-151.54,0.00017265,2]
[352068962,1738931446068,-151.54,0.00017276,2]
[352068963,1738931446077,-1000.0,0.000173,6]
[352068964,1738931446087,-150.22,0.00017342,2]
[352068966,1738931446096,-150.0,0.00017342,2]
[352068968,1738931446105,-1600.0,0.000174,6]
[352068970,1738931446113,-2100.0,0.000175,6]
[352068971,1738931446123,-2600.0,0.000176,6]
[352068972,1738931446131,-500.0,0.000177,6]
[352068973,1738931446141,-500.0,0.000178,6]
[352068974,1738931446150,-150.0,0.0001789,2]
[352068975,1738931446161,-500.0,0.000179,6]
[352068976,1738931446170,-156.16027558,0.00018,2]
[352068977,1738931446179,-3257.83102,0.0001811,2]
[352068978,1738931446191,-43928.93487473,0.00018131,2]
[352069008,1738932631890,-156.95,0.00010137,2]
[352069009,1738932631899,-150.0,0.00014229,2]
[352069010,1738932631908,-150.0,0.00014311,2]
[352069011,1738932631918,-150.0,0.00014453,2]
[352069012,1738932631927,-483.76,0.00015318,2]
[352069013,1738932631936,-1000.0,0.00016927,2]
[352069014,1738932631946,-486.23,0.00016977,2]
[352069015,1738932631955,-11.55999999,0.00016999,2]
[352069016,1738932631966,-238.44000001,0.00016999,2]
[352069017,1738932631976,-346.73802666,0.00017069,2]
[352069018,1738932632002,-201.30197334,0.00017069,2]
[352069019,1738932632011,-171.45,0.00017246,2]
[352069020,1738932632021,-300.0,0.00017287,2]
[352069021,1738932632030,-150.0,0.00017288,2]
[352069022,1738932632041,-221.51,0.00017288,2]
[352069023,1738932632050,-150.99,0.00017288,2]
[352069024,1738932632059,-1464.68,0.00017288,2]
[352069025,1738932632068,-2350.08673275,0.00017319,5]
[352069026,1738932632113,-3568.56326725,0.00017319,5]
[352069027,1738932632122,-2731.58,0.00017319,2]
[352069028,1738932632132,-1521.62,0.00017319,2]
[352069029,1738932632141,-652.519868,0.00017327,2]
[352069030,1738932632150,-439.41,0.00017342,2]
[352069031,1738932632160,-1549.3,0.00017342,2]
[352069032,1738932632169,-154.23,0.00017362,30]
[352069033,1738932632178,-785.0,0.000174,2]
[352069034,1738932632187,-483.76,0.00017582,2]
[352069035,1738932632197,-431.40086281,0.0001798,2]
[352069036,1738932632206,-2002.66,0.0001799,3]
[352069037,1738932632215,-2584.6,0.000181,2]
[352069038,1738932632224,-3733.4080016,0.00018103,2]
[352069039,1738932632233,-2714.85918,0.00018131,2]
[352069040,1738932632242,-164.0,0.00018131,30]
[352069041,1738932632251,-11518.60144892,0.00018131,2]
[352069042,1738932632266,-991.207949,0.00018131,2]
[352069043,1738932632281,-2584.6,0.00018131,2]
[352069044,1738932632294,-591.826501,0.00018131,2]
[352069144,1738932637753,-502.42304737,0.00018131,2]
[352069146,1738932637972,-27795.64670775,0.00018131,2]
[352069147,1738932637981,-5715.91791021,0.00018135,2]
[352069148,1738932638100,-1886.571163,0.00018139,2]
[352069149,1738932638111,-39496.74205376,0.00018144,2]
[352069150,1738932638121,-5715.91791021,0.0001815,2]
[352069151,1738932638130,-39496.74205376,0.00018159,2]
[352069153,1738932638139,-1886.571163,0.0001816,2]
[352069155,1738932638149,-1886.571163,0.00018163,2]
[352069157,1738932638158,-1886.571163,0.0001817,2]
[352069158,1738932638167,-1104.80499419,0.00018171,2]
[352069159,1738932638176,-388.0,0.00018173,2]
[352069160,1738932638185,-200.0,0.00018184,2]
[352069162,1738932638194,-6756.45519211,0.00018188,3]
[352069164,1738932638206,-87913.24052877,0.00018188,2]
[352069165,1738932638215,-1104.80499419,0.00018191,2]
[352069166,1738932638224,-5715.91791021,0.00018195,2]
[352069167,1738932638232,-500.0,0.00018197,2]
[352069168,1738932638241,-500.0,0.00018197,2]
[352069170,1738932638251,-500.0,0.00018197,2]
[352069171,1738932638259,-500.0,0.00018197,2]
[352069172,1738932638268,-500.0,0.00018197,2]
[352069173,1738932638277,-500.0,0.00018197,2]
[352069174,1738932638286,-500.0,0.00018197,2]
[352069175,1738932638295,-500.0,0.00018197,2]
[352069176,1738932638304,-500.0,0.00018197,2]
[352069177,1738932638313,-500.0,0.00018197,2]
[352069178,1738932638323,-500.0,0.00018197,2]
[352069179,1738932638332,-500.0,0.00018197,2]
[352069180,1738932638341,-500.0,0.00018197,2]
[352069181,1738932638350,-500.0,0.00018197,2]
[352069182,1738932638360,-500.0,0.00018197,2]
[352069183,1738932638369,-500.0,0.00018197,2]
[352069184,1738932638378,-500.0,0.00018197,2]
[352069185,1738932638387,-500.0,0.00018197,2]
[352069186,1738932638396,-500.0,0.00018197,2]
[352069187,1738932638409,-500.0,0.00018197,2]
[352069188,1738932638418,-500.0,0.00018197,2]
[352069189,1738932638427,-500.0,0.00018197,2]
[352069190,1738932638436,-500.0,0.00018197,2]
[352069191,1738932638446,-500.0,0.00018197,2]
[352069192,1738932638455,-500.0,0.00018197,2]
[352069193,1738932638464,-500.0,0.00018197,2]
[352069194,1738932638473,-500.0,0.00018197,2]
[352069195,1738932638483,-500.0,0.00018197,2]
[352069196,1738932638492,-500.0,0.00018197,2]
[352069197,1738932638502,-500.0,0.00018197,2]
[352069198,1738932638511,-500.0,0.00018197,2]
[352069199,1738932638521,-500.0,0.00018197,2]
[352069200,1738932638531,-500.0,0.00018197,2]
[352069201,1738932638543,-500.0,0.00018197,2]
[352069202,1738932638552,-500.0,0.00018197,2]
[352069203,1738932638561,-500.0,0.00018197,2]
[352069204,1738932638571,-2101.275181,0.00018197,2]
[352069205,1738932638580,-500.0,0.00018197,2]
[352069206,1738932638589,-500.0,0.00018197,2]
[352069207,1738932638598,-500.0,0.00018197,2]
[352069208,1738932638607,-347.4,0.00018197,2]
[352069209,1738932638616,-176.935763,0.00018197,2]
[352069210,1738932638626,-500.0,0.00018197,2]
[352069211,1738932638639,-500.0,0.00018197,2]
[352069212,1738932638648,-500.0,0.00018197,2]
[352069213,1738932638657,-500.0,0.00018197,2]
[352069214,1738932638666,-155.534578,0.00018197,2]
[352069215,1738932638676,-500.0,0.00018197,2]
[352069216,1738932638685,-500.0,0.00018197,2]
[352069217,1738932638694,-500.0,0.00018197,2]
[352069218,1738932638703,-500.0,0.00018197,2]
[352069219,1738932638713,-500.0,0.00018197,2]
[352069220,1738932638723,-500.0,0.00018197,2]
[352069221,1738932638732,-156939.2648924,0.00018197,3]
[352069222,1738932638741,-1334.828,0.00018198,2]
[352069223,1738932638751,-500.0,0.00018198,2]
[352069224,1738932638760,-500.90151274,0.00018198,2]
[352069225,1738932638769,-589.84934147,0.00018198,2]
[352069226,1738932638779,-500.0,0.00018198,2]
[352069227,1738932638788,-500.0,0.00018198,2]
[352069228,1738932638798,-505.14548056,0.00018198,2]
[352069229,1738932638807,-501.40229513,0.00018198,2]
[352069230,1738932638816,-500.0,0.00018198,2]
[352069231,1738932638825,-541.03325716,0.00018198,2]
[352069232,1738932638834,-500.0,0.00018198,2]
[352069233,1738932638843,-500.0,0.00018198,2]
[352069234,1738932638852,-500.0,0.00018198,2]
[352069235,1738932638861,-500.76375465,0.00018198,2]
[352069236,1738932638871,-500.0,0.00018198,2]
[352069237,1738932638880,-500.0,0.00018198,2]
[352069238,1738932638889,-500.0,0.00018198,2]
[352069239,1738932638898,-500.0,0.00018198,2]
[352069240,1738932638907,-500.0,0.00018198,2]
[352069241,1738932638916,-501.29873366,0.00018198,2]
[352069242,1738932638926,-500.0,0.00018198,2]
[352069243,1738932638935,-500.0,0.00018198,2]
[352069244,1738932638944,-500.0,0.00018198,2]
[352069245,1738932638953,-500.0,0.00018198,2]
[352069246,1738932638962,-500.0,0.00018198,2]
[352069247,1738932638972,-504.30303892,0.00018198,2]
[352069248,1738932638981,-500.0,0.00018198,2]
[352069249,1738932638990,-502.17212235,0.00018198,2]
[352069250,1738932638999,-500.0,0.00018198,2]
[352069251,1738932639008,-500.0,0.00018198,2]
[352069252,1738932639017,-501.0150584,0.00018198,2]
[352069253,1738932639026,-500.0,0.00018198,2]
[352069254,1738932639035,-500.70862141,0.00018198,2]
[352069255,1738932639045,-500.0,0.00018198,2]
[352069256,1738932639054,-504.33790305,0.00018198,2]
[352069257,1738932639063,-500.0,0.00018198,2]
[352069258,1738932639072,-501.70150771,0.00018198,2]
[352069259,1738932639082,-500.0,0.00018198,2]
[352069260,1738932639091,-500.0,0.00018198,2]
[352069261,1738932639100,-502.95514053,0.00018198,2]
[352069262,1738932639109,-500.0,0.00018198,2]
[352069263,1738932639118,-500.0,0.00018198,2]
[352069264,1738932639128,-500.0,0.00018198,2]
[352069265,1738932639137,-500.0,0.00018198,2]
[352069266,1738932639146,-500.0,0.00018198,2]
[352069267,1738932639155,-500.0,0.00018198,2]
[352069268,1738932639163,-500.0,0.00018198,2]
[352069269,1738932639173,-502.23849842,0.00018198,2]
[352069270,1738932639182,-510.30707489,0.00018198,2]
[352069271,1738932639191,-500.0,0.00018198,2]
[352069272,1738932639200,-500.0,0.00018198,2]
[352069273,1738932639209,-500.0,0.00018198,2]
[352069274,1738932639219,-508.20055943,0.00018198,2]
[352069275,1738932639227,-500.0,0.00018198,2]
[352069276,1738932639236,-500.0,0.00018198,2]
[352069277,1738932639245,-500.0,0.00018198,2]
[352069278,1738932639254,-500.0,0.00018198,2]
[352069279,1738932639263,-502.18264936,0.00018198,2]
[352069280,1738932639273,-503.46935905,0.00018198,2]
[352069281,1738932639282,-500.0,0.00018198,2]
[352069282,1738932639292,-503.82396479,0.00018198,2]
[352069283,1738932639301,-500.0,0.00018198,2]
[352069284,1738932639312,-500.0,0.00018198,2]
[352069285,1738932639320,-500.0,0.00018198,2]
[352069286,1738932639330,-503.99988123,0.00018198,2]
[352069287,1738932639338,-500.0,0.00018198,2]
[352069288,1738932639347,-503.85090054,0.00018198,2]
[352069289,1738932639356,-500.0,0.00018198,2]
[352069290,1738932639365,-583.30521897,0.00018198,2]
[352069291,1738932639374,-501.19136368,0.00018198,2]
[352069292,1738932639383,-501.94670628,0.00018198,2]
[352069293,1738932639392,-500.0,0.00018198,2]
[352069294,1738932639401,-500.0,0.00018198,2]
[352069295,1738932639410,-500.0,0.00018198,2]
[352069296,1738932639418,-500.0,0.00018198,2]
[352069297,1738932639427,-500.0,0.00018198,2]
[352069298,1738932639437,-500.0,0.00018198,2]
[352069299,1738932639446,-500.0,0.00018198,2]
[352069300,1738932639455,-503.48440675,0.00018198,2]
[352069301,1738932639464,-500.0,0.00018198,2]
[352069302,1738932639473,-504.77453799,0.00018198,2]
[352069303,1738932639482,-500.0,0.00018198,2]
[352069304,1738932639492,-504.54184634,0.00018198,2]
[352069305,1738932639501,-500.0,0.00018198,2]
[352069306,1738932639511,-500.0,0.00018198,2]
[352069307,1738932639520,-500.0,0.00018198,2]
[352069308,1738932639528,-500.0,0.00018198,2]
[352069309,1738932639538,-500.0,0.00018198,2]
[352069310,1738932639547,-500.0,0.00018198,2]
[352069311,1738932639557,-500.0,0.00018198,2]
[352069312,1738932639566,-500.0,0.00018198,2]
[352069313,1738932639575,-500.0,0.00018198,2]
[352069314,1738932639584,-500.0,0.00018198,2]
[352069315,1738932639593,-500.84237047,0.00018198,2]
[352069316,1738932639603,-502.09856702,0.00018198,2]
[352069317,1738932639612,-500.0,0.00018198,2]
[352069318,1738932639621,-500.0,0.00018198,2]
[352069319,1738932639631,-500.0,0.00018198,2]
[352069320,1738932639640,-500.0,0.00018198,2]
[352069321,1738932639649,-500.0,0.00018198,2]
[352069322,1738932639658,-543.22867127,0.00018198,2]
[352069323,1738932639667,-500.0,0.00018198,2]
[352069324,1738932639677,-500.0,0.00018198,2]
[352069325,1738932639687,-274.89920895,0.00018198,2]
[352069326,1738932639695,-500.0,0.00018198,2]
[352069327,1738932639705,-500.0,0.00018198,2]
[352069328,1738932639714,-500.0,0.00018198,2]
[352069329,1738932639724,-500.85849681,0.00018198,2]
[352069331,1738932639734,-500.0,0.00018198,2]
[352069333,1738932639743,-500.0,0.00018198,2]
[352069334,1738932639752,-500.0,0.00018198,2]
[352069335,1738932639761,-500.0,0.00018198,2]
[352069336,1738932639770,-500.0,0.00018198,2]
[352069338,1738932639779,-500.0,0.00018198,2]
[352069339,1738932639788,-500.0,0.00018198,2]
[352069340,1738932639798,-500.0,0.00018198,2]
[352069341,1738932639807,-501.51211345,0.00018198,2]
[352069342,1738932639817,-500.0,0.00018198,2]
[352069343,1738932639826,-500.0,0.00018198,2]
[352069344,1738932639835,-500.0,0.00018198,2]
[352069345,1738932639844,-500.62705895,0.00018198,2]
[352069346,1738932639853,-500.0,0.00018198,2]
[352069347,1738932639862,-500.0,0.00018198,2]
[352069348,1738932639871,-500.0,0.00018198,2]
[352069349,1738932639881,-500.0,0.00018198,2]
[352069350,1738932639890,-500.0,0.00018198,2]
[352069351,1738932639899,-500.0,0.00018198,2]
[352069352,1738932639908,-500.0,0.00018198,2]
[352069353,1738932639917,-500.0,0.00018198,2]
[352069354,1738932639927,-500.0,0.00018198,2]
[352069355,1738932639936,-500.0,0.00018198,2]
[352069356,1738932639945,-500.0,0.00018198,2]
[352069357,1738932639954,-500.0,0.00018198,2]
[352069358,1738932639963,-500.0,0.00018198,2]
[352069359,1738932639972,-502.04276304,0.00018198,2]
[352069360,1738932639982,-500.77463396,0.00018198,2]
[352069361,1738932639991,-500.0,0.00018198,2]
[352069362,1738932640000,-500.39197061,0.00018198,2]
[352069363,1738932640009,-500.0,0.00018198,2]
[352069364,1738932640018,-500.0,0.00018198,2]
[352069365,1738932640027,-500.0,0.00018198,2]
[352069366,1738932640036,-500.0,0.00018198,2]
[352069367,1738932640047,-500.38723368,0.00018198,2]
[352069368,1738932640056,-500.0,0.00018198,2]
[352069369,1738932640066,-500.0,0.00018198,2]
[352069370,1738932640076,-500.0,0.00018198,2]
[352069371,1738932640085,-500.0,0.00018198,2]
[352069372,1738932640094,-501.50300113,0.00018198,2]
[352069373,1738932640191,-500.0,0.00018198,2]
[352069374,1738932640201,-500.0,0.00018198,2]
[352069375,1738932640211,-500.0,0.00018198,2]
[352069376,1738932640220,-500.0,0.00018198,2]
[352069377,1738932640229,-500.0,0.00018198,2]
[352069378,1738932640238,-500.0,0.00018198,2]
[352069379,1738932640247,-500.0,0.00018198,2]
[352069380,1738932640256,-500.0,0.00018198,2]
[352069381,1738932640266,-500.0,0.00018198,2]
[352069382,1738932640274,-500.0,0.00018198,2]
[352069383,1738932640284,-500.0,0.00018198,2]
[352069384,1738932640294,-500.0,0.00018198,2]
[352069385,1738932640303,-500.0,0.00018198,2]
[352069387,1738932640312,-500.0,0.00018198,2]
[352069388,1738932640321,-500.0,0.00018198,2]
[352069389,1738932640330,-500.0,0.00018198,2]
[352069390,1738932640339,-500.0,0.00018198,2]
[352069391,1738932640348,-500.0,0.00018198,2]
[352069392,1738932640357,-500.0,0.00018198,2]
[352069393,1738932640366,-500.0,0.00018198,2]
[352069394,1738932640375,-500.0,0.00018198,2]
[352069395,1738932640384,-500.0,0.00018198,2]
[352069396,1738932640393,-500.6100174,0.00018198,2]
[352069397,1738932640402,-503.00500572,0.00018198,2]
[352069398,1738932640411,-500.0,0.00018198,2]
[352069399,1738932640420,-500.0,0.00018198,2]
[352069400,1738932640428,-500.0,0.00018198,2]
[352069401,1738932640435,-500.0,0.00018198,2]
[352069402,1738932640443,-501.14906576,0.00018198,2]
[352069403,1738932640451,-510.98516391,0.00018198,2]
[352069404,1738932640459,-500.0,0.00018198,2]
[352069405,1738932640466,-500.0,0.00018198,2]
[352069406,1738932640474,-500.0,0.00018198,2]
[352069407,1738932640482,-500.0,0.00018198,2]
[352069408,1738932640490,-500.0,0.00018198,2]
[352069409,1738932640497,-500.0,0.00018198,2]
[352069410,1738932640505,-500.0,0.00018198,2]
[352069411,1738932640519,-500.0,0.00018198,2]
[352069412,1738932640527,-500.0,0.00018198,2]
[352069413,1738932640535,-503.24233675,0.00018198,2]
[352069414,1738932640544,-500.54916612,0.00018198,2]
[352069415,1738932640553,-647.24243988,0.00018198,2]
[352069416,1738932640564,-500.0,0.00018198,2]
[352069417,1738932640573,-500.0,0.00018198,2]
[352069418,1738932640582,-400.86772046,0.00018198,2]
[352069419,1738932640593,-500.0,0.00018198,2]
[352069420,1738932640602,-500.0,0.00018198,2]
[352069421,1738932640612,-500.0,0.00018198,2]
[352069422,1738932640621,-500.0,0.00018198,2]
[352069423,1738932640634,-511.2033621,0.00018198,2]
[352069424,1738932640643,-500.0,0.00018198,2]
[352069425,1738932640652,-500.0,0.00018198,2]
[352069426,1738932640663,-500.0,0.00018198,2]
[352069427,1738932640674,-500.0,0.00018198,2]
[352069428,1738932640683,-501.81776813,0.00018198,2]
[352069429,1738932640692,-500.0,0.00018198,2]
[352069430,1738932640701,-500.0,0.00018198,2]
[352069431,1738932640713,-500.0,0.00018198,2]
[352069432,1738932640722,-500.0,0.00018198,2]
[352069433,1738932640731,-500.0,0.00018198,2]
[352069434,1738932640740,-500.0,0.00018198,2]
[352069435,1738932640750,-500.0,0.00018198,2]
[352069436,1738932640758,-500.0,0.00018198,2]
[352069437,1738932640768,-500.0,0.00018198,2]
[352069438,1738932640776,-500.0,0.00018198,2]
[352069439,1738932640787,-500.0,0.00018198,2]
[352069440,1738932640796,-500.0,0.00018198,2]
[352069441,1738932640805,-277.38015964,0.00018198,2]
[352069442,1738932640815,-500.0,0.00018198,2]
[352069443,1738932640824,-503.23757019,0.00018198,2]
[352069444,1738932640833,-500.0,0.00018198,2]
[352069445,1738932640843,-281.11828167,0.00018198,2]
[352069446,1738932640852,-500.0,0.00018198,2]
[352069447,1738932640861,-503.28535827,0.00018198,2]
[352069448,1738932640870,-500.72698189,0.00018198,2]
[352069449,1738932640879,-502.64870772,0.00018198,2]
[352069450,1738932640888,-500.0,0.00018198,2]
[352069451,1738932640898,-500.0,0.00018198,2]
[352069452,1738932640907,-500.0,0.00018198,2]
[352069453,1738932640916,-500.0,0.00018198,2]
[352069454,1738932640927,-500.0,0.00018198,2]
[352069455,1738932640936,-500.0,0.00018198,2]
[352069456,1738932640945,-373.94730101,0.00018198,2]
[352069457,1738932640955,-500.0,0.00018198,2]
[352069458,1738932640964,-500.0,0.00018198,2]
[352069459,1738932640973,-503.02073104,0.00018198,2]
[352069460,1738932640982,-321.7336469,0.00018198,2]
[352069461,1738932640991,-500.0,0.00018198,2]
[352069462,1738932640999,-500.0,0.00018198,2]
[352069463,1738932641008,-502.13675645,0.00018198,2]
[352069464,1738932641018,-500.0,0.00018198,2]
[352069465,1738932641026,-500.0,0.00018198,2]
[352069466,1738932641035,-500.0,0.00018198,2]
[352069467,1738932641046,-500.0,0.00018198,2]
[352069468,1738932641054,-500.0,0.00018198,2]
[352069469,1738932641064,-307.74997637,0.00018198,2]
[352069470,1738932641073,-501.85534149,0.00018198,2]
[352069471,1738932641082,-500.0,0.00018198,2]
[352069472,1738932641092,-500.0,0.00018198,2]
[352069473,1738932641100,-502.39970972,0.00018198,2]
[352069474,1738932641109,-500.0,0.00018198,2]
[352069475,1738932641119,-500.0,0.00018198,2]
[352069476,1738932641129,-500.0,0.00018198,2]
[352069477,1738932641138,-502.52454328,0.00018198,2]
[352069478,1738932641146,-500.0,0.00018198,2]
[352069479,1738932641153,-500.0,0.00018198,2]
[352069480,1738932641161,-502.1950876,0.00018198,2]
[352069481,1738932641169,-500.0,0.00018198,2]
[352069482,1738932641177,-504.42602503,0.00018198,2]
[352069483,1738932641185,-502.165323,0.00018198,2]
[352069484,1738932641193,-500.0,0.00018198,2]
[352069485,1738932641201,-500.0,0.00018198,2]
[352069486,1738932641209,-500.0,0.00018198,2]
[352069487,1738932641216,-514.70709785,0.00018198,2]
[352069488,1738932641224,-500.0,0.00018198,2]
[352069489,1738932641232,-501.02544404,0.00018198,2]
[352069490,1738932641240,-560.2310668,0.00018198,2]
[352069491,1738932641248,-500.0,0.00018198,2]
[352069492,1738932641258,-500.0,0.00018198,2]
[352069493,1738932641267,-500.0,0.00018198,2]
[352069494,1738932641276,-500.0,0.00018198,2]
[352069495,1738932641285,-512.01006996,0.00018198,2]
[352069496,1738932641294,-500.0,0.00018198,2]
[352069497,1738932641304,-500.0,0.00018198,2]
[352069498,1738932641313,-500.0,0.00018198,2]
[352069499,1738932641322,-500.0,0.00018198,2]
[352069500,1738932641331,-500.0,0.00018198,2]
[352069501,1738932641340,-500.0,0.00018198,2]
[352069502,1738932641350,-500.0,0.00018198,2]
[352069503,1738932641358,-500.0,0.00018198,2]
[352069504,1738932641368,-500.0,0.00018198,2]
[352069505,1738932641380,-500.0,0.00018198,2]
[352069506,1738932641390,-434.67865826,0.00018198,2]
[352069507,1738932641401,-500.0,0.00018198,2]
[352069508,1738932641411,-500.0,0.00018198,2]
[352069509,1738932641420,-503.83330462,0.00018198,2]
[352069510,1738932641431,-500.0,0.00018198,2]
[352069511,1738932641441,-500.0,0.00018198,2]
[352069512,1738932641450,-503.51237108,0.00018198,2]
[352069513,1738932641459,-500.0,0.00018198,2]
[352069514,1738932641468,-500.0,0.00018198,2]
[352069515,1738932641477,-500.0,0.00018198,2]
[352069516,1738932641486,-500.0,0.00018198,2]
[352069517,1738932641496,-500.0,0.00018198,2]
[352069518,1738932641505,-500.0,0.00018198,2]
[352069519,1738932641514,-500.0,0.00018198,2]
[352069520,1738932641524,-500.0,0.00018198,2]
[352069521,1738932641533,-500.0,0.00018198,2]
[352069522,1738932641544,-460.13198104,0.00018198,2]
[352069523,1738932641553,-500.0,0.00018198,2]
[352069524,1738932641562,-500.0,0.00018198,2]
[352069525,1738932641571,-2488.201748,0.00018198,2]
[352069526,1738932641580,-500.0,0.00018198,2]
[352069527,1738932641589,-500.0,0.00018198,2]
[352069528,1738932641598,-500.0,0.00018198,2]
[352069529,1738932641607,-500.0,0.00018198,2]
[352069530,1738932641616,-500.0,0.00018198,2]
[352069531,1738932641631,-500.0,0.00018198,2]
[352069532,1738932641640,-500.0,0.00018198,2]
[352069533,1738932641649,-500.0,0.00018198,2]
[352069534,1738932641659,-500.0,0.00018198,2]
[352069535,1738932641669,-500.0,0.00018198,2]
[352069536,1738932641678,-500.0,0.00018198,2]
[352069537,1738932641687,-500.0,0.00018198,2]
[352069538,1738932641696,-500.0,0.00018198,2]
[352069539,1738932641706,-500.0,0.00018198,2]
[352069540,1738932641715,-500.0,0.00018198,2]
[352069541,1738932641724,-500.0,0.00018198,2]
[352069542,1738932641733,-501.85561401,0.00018198,2]
[352069543,1738932641742,-176.7473867,0.00018198,2]
[352069544,1738932641752,-500.0,0.00018198,2]
[352069545,1738932641760,-500.0,0.00018198,2]
[352069546,1738932641773,-503.59365442,0.00018198,2]
[352069547,1738932641782,-502.17605036,0.00018198,2]
[352069548,1738932641791,-500.0,0.00018198,2]
[352069549,1738932641801,-500.0,0.00018198,2]
[352069550,1738932641810,-500.0,0.00018198,2]
[352069551,1738932641819,-500.0,0.00018198,2]
[352069552,1738932641828,-500.0,0.00018198,2]
[352069553,1738932641837,-500.0,0.00018198,2]
[352069554,1738932641846,-500.0,0.00018198,2]
[352069555,1738932641855,-500.0,0.00018198,2]
[352069556,1738932641864,-500.0,0.00018198,2]
[352069557,1738932641873,-868.45,0.00018198,2]
[352069558,1738932641882,-530.77773129,0.00018198,2]
[352069559,1738932641891,-500.0,0.00018198,2]
[352069560,1738932641900,-500.0,0.00018198,2]
[352069561,1738932641909,-500.0,0.00018198,2]
[352069562,1738932641918,-500.0,0.00018198,2]
[352069563,1738932641927,-500.0,0.00018198,2]
[352069564,1738932641936,-500.0,0.00018198,2]
[352069565,1738932641946,-500.0,0.00018198,2]
[352069566,1738932641955,-500.0,0.00018198,2]
[352069567,1738932641964,-500.0,0.00018198,2]
[352069568,1738932641973,-500.0,0.00018198,2]
[352069569,1738932641983,-500.0,0.00018198,2]
[352069570,1738932641992,-500.0,0.00018198,2]
[352069571,1738932642001,-500.0,0.00018198,2]
[352069572,1738932642010,-500.0,0.00018198,2]
[352069573,1738932642019,-584.79657325,0.00018198,2]
[352069574,1738932642127,-500.0,0.00018198,2]
[352069575,1738932642136,-500.0,0.00018198,2]
[352069576,1738932642145,-500.0,0.00018198,2]
[352069577,1738932642155,-502.68440932,0.00018198,2]
[352069578,1738932642165,-517.64939381,0.00018198,2]